bitfinex-derivatives/quotes_BTCF0:USTF0_20250906
["timestamp","ask_amount","ask_price","bid_price","bid_amount"]
[1757154363484,1.21376638,110800.0,110790.0,0.03986]
[1757154365487,0.9232265,110800.0,110790.0,0.03986]
[1757154365786,1.21376638,110800.0,110790.0,0.03986]
[1757154371789,0.9232265,110800.0,110790.0,0.03986]
[1757154371988,1.21376638,110800.0,110790.0,0.03986]
[1757154373796,0.9232265,110800.0,110790.0,0.03986]
[1757154374094,1.21376638,110800.0,110790.0,0.03986]
[1757154376194,0.9232265,110800.0,110790.0,0.03986]
[1757154376398,1.21376638,110800.0,110790.0,0.03986]
[1757154381498,1.21376638,110800.0,110790.0,0.12109451]
[1757154382603,0.9232265,110800.0,110790.0,0.12109451]
[1757154382806,1.21376638,110800.0,110790.0,0.12109451]
[1757154384100,0.9232265,110800.0,110790.0,0.12109451]
[1757154384306,1.21376638,110800.0,110790.0,0.12109451]
[1757154384698,1.21284638,110800.0,110790.0,0.12109451]
[1757154384898,0.9223065,110800.0,110790.0,0.12109451]
[1757154385201,1.21276638,110800.0,110790.0,0.12109451]
[1757154385402,0.9222265,110800.0,110790.0,0.12109451]
[1757154385599,1.21276638,110800.0,110790.0,0.12109451]
[1757154386605,0.9222265,110800.0,110790.0,0.12109451]
[1757154391709,0.9222265,110800.0,110790.0,0.03986]
[1757154394408,1.21276638,110800.0,110790.0,0.03986]
[1757154400109,0.1000665,110800.0,110790.0,0.03986]
[1757154400313,0.9215865,110800.0,110790.0,0.33039988]
[1757154401613,0.9215865,110800.0,110790.0,0.03986]
[1757154403515,0.9215865,110800.0,110790.0,0.33039988]
[1757154405212,0.1000665,110800.0,110790.0,0.66163439]
[1757154408716,0.0902465,110800.0,110790.0,0.75188829]
[1757154408915,0.0902465,110800.0,110790.0,0.67065378]
[1757154409319,0.0902465,110800.0,110790.0,0.49375287]
[1757154409621,0.0902465,110800.0,110790.0,0.78429275]
[1757154410919,0.0902465,110800.0,110790.0,0.67065378]
[1757154412419,0.0902465,110800.0,110790.0,0.75174806]
[1757154412723,0.0902465,110800.0,110790.0,0.67065378]
[1757154414019,0.0902465,110800.0,110790.0,1.49233378]
[1757154417526,0.0902465,110800.0,110790.0,1.57337433]
[1757154417728,0.00113524,110810.0,110800.0,0.03552]
[1757154418126,0.00113524,110810.0,110800.0,0.32605988]
[1757154418927,0.00013524,110810.0,110800.0,0.32605988]
[1757154419427,0.00013524,110810.0,110800.0,0.32705988]
[1757154420627,0.00013524,110810.0,110800.0,0.03652]
[1757154420830,0.00013524,110810.0,110800.0,0.32705988]
[1757154424330,0.00013524,110810.0,110800.0,0.40810043]
[1757154425428,0.00013524,110810.0,110800.0,0.44423803]
[1757154439543,0.00013524,110810.0,110800.0,0.36319748]
[1757154441944,0.00013524,110810.0,110800.0,0.47683645]
[1757154443644,0.00013524,110810.0,110800.0,0.36319748]
[1757154444848,0.00013524,110810.0,110800.0,0.44445889]
[1757154447442,0.00995524,110810.0,110800.0,1.26437889]
[1757154448545,0.00013524,110810.0,110800.0,1.26437889]
[1757154453950,0.00013524,110810.0,110800.0,0.44445889]
[1757154454252,0.00995524,110810.0,110800.0,1.26417889]
[1757154455054,0.00995524,110810.0,110800.0,0.36319748]
[1757154455357,0.00013524,110810.0,110800.0,1.18291748]
[1757154459858,0.00013524,110810.0,110800.0,1.2641806]
[1757154466873,0.00013524,110810.0,110800.0,0.11778312]
[1757154467158,0.00013524,110810.0,110800.0,0.4444606]
[1757154467359,0.00013524,110810.0,110800.0,1.2641806]
[1757154469863,0.00013524,110810.0,110800.0,1.18291748]
[1757154477154,0.00013524,110810.0,110800.0,1.29655645]
[1757154479862,0.00013524,110810.0,110800.0,1.29651645]
[1757154482961,0.00013524,110810.0,110800.0,1.37777696]
[1757154483269,0.00013524,110810.0,110800.0,1.26413799]
[1757154485062,0.00013524,110810.0,110800.0,0.44445799]
[1757154485262,0.00013524,110810.0,110800.0,1.26409799]
[1757154485468,0.00013524,110810.0,110800.0,1.22782095]
[1757154494985,0.00013524,110810.0,110800.0,1.14656044]
[1757154499581,0.00013524,110810.0,110800.0,1.26019941]
[1757154499992,0.00013524,110810.0,110800.0,1.14656044]
[1757154501078,0.00013524,110810.0,110800.0,1.22782189]
[1757154509981,0.00013524,110810.0,110800.0,1.14656044]
[1757154513894,0.00013524,110810.0,110800.0,1.26019941]
[1757154518095,0.00013524,110810.0,110800.0,1.14656044]
[1757154519998,0.00013524,110810.0,110800.0,1.26019941]
[1757154526000,0.00013524,110810.0,110800.0,1.14656044]
[1757154527600,0.00013524,110810.0,110800.0,1.26019941]
[1757154529102,0.00013524,110810.0,110800.0,1.34146326]
[1757154529304,0.00013524,110810.0,110800.0,1.22782429]
[1757154533302,0.00013524,110810.0,110800.0,0.93742385]
[1757154533601,0.00013524,110810.0,110800.0,1.22782429]
[1757154535107,0.00013524,110810.0,110800.0,1.14656044]
[1757154539019,0.00013524,110810.0,110800.0,1.22782429]
[1757154545028,0.00013524,110810.0,110800.0,1.14656044]
[1757154545427,0.00013524,110810.0,110800.0,1.2278226]
[1757154547432,0.00013524,110810.0,110800.0,1.26411378]
[1757154561236,0.00013524,110810.0,110800.0,1.18285162]
[1757154561931,0.00013524,110810.0,110800.0,1.26411381]
[1757154564532,0.00013524,110810.0,110800.0,0.93742219]
[1757154564839,0.00013524,110810.0,110800.0,1.26411381]
[1757154571841,0.00013524,110810.0,110800.0,1.18285162]
[1757154574841,0.00013524,110810.0,110800.0,1.26411486]
[1757154580748,0.00013524,110810.0,110800.0,1.18285162]
[1757154585034,0.00013524,110810.0,110800.0,1.26411486]
[1757154589748,0.00013524,110810.0,110800.0,1.18285162]
[1757154589949,0.00013524,110810.0,110800.0,1.29649059]
[1757154598759,0.00013524,110810.0,110800.0,0.47685059]
[1757154599058,0.00013524,110810.0,110800.0,1.29577059]
[1757154609367,0.00013524,110810.0,110800.0,1.18213162]
[1757154609665,0.00995524,110810.0,110800.0,1.14583898]
[1757154610362,0.00995524,110810.0,110800.0,0.32691898]
[1757154610664,0.00995524,110810.0,110800.0,1.14567898]
[1757154619466,0.00995524,110810.0,110800.0,0.03652]
[1757154619766,0.00995524,110810.0,110800.0,0.91699898]
[1757154623782,0.00995524,110810.0,110800.0,0.32691898]
[1757154623974,0.55035422,110810.0,110800.0,0.03652]
[1757154624175,0.55035422,110810.0,110800.0,0.11777764]
[1757154624469,0.55035422,110810.0,110800.0,0.03652]
[1757154628675,0.55035422,110810.0,110800.0,0.01482]
[1757154629477,0.55035422,110810.0,110800.0,0.001]
[1757154630575,0.55359422,110810.0,110800.0,0.001]
[1757154633478,1.37223422,110810.0,110800.0,0.001]
[1757154633677,1.08183524,110810.0,110800.0,0.001]
[1757154633877,1.37223422,110810.0,110800.0,0.001]
[1757154639380,1.12223422,110810.0,110800.0,0.001]
[1757154642780,0.30359422,110810.0,110800.0,0.001]
[1757154643182,0.90203422,110810.0,110800.0,0.001]
[1757154643377,0.01319524,110810.0,110800.0,0.001]
[1757154643583,0.33251524,110810.0,110800.0,0.03789]
[1757154643782,0.62291422,110810.0,110800.0,0.03789]
[1757154644491,1.11899422,110810.0,110800.0,0.03789]
[1757154644690,0.30035422,110810.0,110800.0,0.03789]
[1757154644886,1.11899422,110810.0,110800.0,0.03789]
[1757154647394,0.82859524,110810.0,110800.0,0.03789]
[1757154647599,1.11899422,110810.0,110800.0,0.03789]
[1757154649695,0.00995524,110810.0,110800.0,0.03789]
[1757154649900,1.11899422,110810.0,110800.0,0.03789]
[1757154654697,0.82859524,110810.0,110800.0,0.03789]
[1757154654892,1.11899422,110810.0,110800.0,0.03789]
[1757154664209,0.82859524,110810.0,110800.0,0.03789]
[1757154664508,1.11899422,110810.0,110800.0,0.03789]
[1757154664908,1.14126408,110810.0,110800.0,0.03789]
[1757154667610,0.32262408,110810.0,110800.0,0.03789]
[1757154667810,0.8508251,110810.0,110800.0,0.03789]
[1757154667999,1.14122408,110810.0,110800.0,0.03789]
[1757154670311,1.14118408,110810.0,110800.0,0.03789]
[1757154671415,1.17761321,110810.0,110800.0,0.03789]
[1757154672121,0.8507851,110810.0,110800.0,0.03789]
[1757154672315,1.17761321,110810.0,110800.0,0.03789]
[1757154674824,0.8507851,110810.0,110800.0,0.03789]
[1757154675015,1.15534335,110810.0,110800.0,0.03789]
[1757154677019,0.82851524,110810.0,110800.0,0.03789]
[1757154677223,1.15534335,110810.0,110800.0,0.03789]
[1757154679225,1.15530335,110810.0,110800.0,0.03789]
[1757154684128,0.33678335,110810.0,110800.0,0.03789]
[1757154684426,1.15530335,110810.0,110800.0,0.61471811]
[1757154687433,0.82847524,110810.0,110800.0,0.61471811]
[1757154687632,1.15530335,110810.0,110800.0,0.28789]
[1757154687831,1.15530335,110810.0,110800.0,0.61471811]
[1757154690936,0.33678335,110810.0,110800.0,0.61471811]
[1757154691234,1.15522335,110810.0,110800.0,0.61471811]
[1757154698832,0.82839524,110810.0,110800.0,0.61471811]
[1757154699032,1.15522335,110810.0,110800.0,0.61471811]
[1757154699339,1.15522335,110810.0,110800.0,0.36471811]
[1757154699833,0.82839524,110810.0,110800.0,0.36471811]
[1757154700028,1.15522335,110810.0,110800.0,0.36471811]
[1757154700741,0.82839524,110810.0,110800.0,0.36471811]
[1757154700941,1.15518335,110810.0,110800.0,0.36471811]
[1757154706747,0.82835524,110810.0,110800.0,0.03789]
[1757154706940,1.15518335,110810.0,110800.0,0.36471811]
[1757154708133,1.15518335,110810.0,110800.0,0.03789]
[1757154708339,1.15518335,110810.0,110800.0,0.36471811]
[1757154710943,1.15518335,110810.0,110800.0,0.03789]
[1757154711147,1.15518335,110810.0,110800.0,0.36471811]
[1757154715050,1.17735038,110810.0,110800.0,0.36471811]
[1757154715651,1.17735038,110810.0,110800.0,0.03789]
[1757154715953,1.17735038,110810.0,110800.0,0.36471811]
[1757154716253,1.17735038,110810.0,110800.0,0.03789]
[1757154725050,1.15518335,110810.0,110800.0,0.03789]
[1757154727361,1.15518335,110810.0,110800.0,0.36471811]
[1757154729061,1.15518335,110810.0,110800.0,0.03789]
[1757154733178,0.82835524,110810.0,110800.0,0.03789]
[1757154733478,1.11885033,110810.0,110800.0,0.03789]
[1757154734881,1.11857033,110810.0,110800.0,0.03789]
[1757154735085,0.82807524,110810.0,110800.0,0.03789]
[1757154739588,1.11857033,110810.0,110800.0,0.03789]
[1757154746380,0.82807524,110810.0,110800.0,0.03789]
[1757154746585,1.11857033,110810.0,110800.0,0.03789]
[1757154749489,0.82807524,110810.0,110800.0,0.03789]
[1757154749688,1.11857033,110810.0,110800.0,0.03789]
[1757154753598,0.82807524,110810.0,110800.0,0.03789]
[1757154753790,1.11857033,110810.0,110800.0,0.03789]
[1757154755098,1.14077233,110810.0,110800.0,0.03789]
[1757154755698,0.85027724,110810.0,110800.0,0.03789]
[1757154755892,1.14077233,110810.0,110800.0,0.03789]
[1757154759300,0.85027724,110810.0,110800.0,0.03789]
[1757154759501,1.14077233,110810.0,110800.0,0.03789]
[1757154759899,0.85027724,110810.0,110800.0,0.03789]
[1757154760901,0.82807524,110810.0,110800.0,0.03789]
[1757154761108,0.00995524,110810.0,110800.0,0.03789]
[1757154761309,0.82791524,110810.0,110800.0,0.03789]
[1757154761802,0.00995524,110810.0,110800.0,0.03789]
[1757154762005,0.82791524,110810.0,110800.0,0.03789]
[1757154762304,0.85006457,110810.0,110800.0,0.03789]
[1757154765006,0.82791524,110810.0,110800.0,0.03789]
[1757154768404,1.11841033,110810.0,110800.0,0.03789]
[1757154776205,0.82791524,110810.0,110800.0,0.03789]
[1757154776407,1.11841033,110810.0,110800.0,0.03789]
[1757154778213,0.82791524,110810.0,110800.0,0.03789]
[1757154778407,0.00995524,110810.0,110800.0,0.57838509]
[1757154778604,0.82779524,110810.0,110800.0,0.57838509]
[1757154778813,0.82779524,110810.0,110800.0,0.65964273]
[1757154779010,0.00995524,110810.0,110800.0,0.65964273]
[1757154780209,0.00013524,110810.0,110800.0,0.65964273]
[1757154787323,0.00013524,110810.0,110800.0,0.57838509]
[1757154788216,0.00995524,110810.0,110800.0,0.28789]
[1757154788421,0.00995524,110810.0,110800.0,0.57838509]
[1757154788720,0.00013524,110810.0,110800.0,0.28789]
[1757154788921,0.00013524,110810.0,110800.0,0.57838509]
[1757154790320,0.00995524,110810.0,110800.0,0.57838509]
[1757154790719,0.00995524,110810.0,110800.0,0.28789]
[1757154790920,0.00995524,110810.0,110800.0,0.57838509]
[1757154795423,0.00995524,110810.0,110800.0,0.61461368]
[1757154799536,0.00995524,110810.0,110800.0,0.28789]
[1757154799832,0.00995524,110810.0,110800.0,0.61461368]
[1757154808540,0.00995524,110810.0,110800.0,0.69587132]
[1757154819449,0.00995524,110810.0,110800.0,0.44587132]
[1757154821347,0.00995524,110810.0,110800.0,0.11914764]
[1757154821548,0.00995524,110810.0,110800.0,0.44587132]
[1757154825653,0.00995524,110810.0,110800.0,0.11914764]
[1757154825949,0.00995524,110810.0,110800.0,0.44587132]
[1757154829056,0.00995524,110810.0,110800.0,0.11914764]
[1757154829355,0.00995524,110810.0,110800.0,0.44587132]
[1757154839854,0.00013524,110810.0,110800.0,0.44587132]
[1757154845070,0.00013524,110810.0,110800.0,0.36461368]
[1757154847465,0.00013524,110810.0,110800.0,0.44587132]
[1757154847662,0.00013524,110810.0,110800.0,0.36461368]
[1757154848365,0.00013524,110810.0,110800.0,0.03789]
[1757154848566,0.00013524,110810.0,110800.0,0.36461368]
[1757154849370,0.00013524,110810.0,110800.0,0.61461368]
[1757154849576,0.00013524,110810.0,110800.0,1.43185368]
[1757154849869,0.00013524,110810.0,110800.0,1.51311132]
[1757154850470,0.00013524,110810.0,110800.0,1.60335762]
[1757154851774,0.00013524,110810.0,110800.0,1.61229859]
[1757154852475,0.00013524,110810.0,110800.0,1.61225859]
[1757154853278,0.00013524,110810.0,110800.0,0.79505859]
[1757154853579,0.00013524,110810.0,110800.0,1.61225859]
[1757154857382,0.00013524,110810.0,110800.0,1.53100095]
[1757154857571,0.00013524,110810.0,110800.0,1.4946433]
[1757154858680,0.00013524,110810.0,110800.0,1.60828227]
[1757154859673,0.00013524,110810.0,110800.0,1.4946433]
[1757154861181,0.00013524,110810.0,110800.0,1.57582269]
[1757154861482,0.00013524,110810.0,110800.0,1.4946433]
[1757154862281,0.00013524,110810.0,110800.0,1.57582112]
[1757154864878,0.00013524,110810.0,110800.0,1.32582112]
[1757154865078,0.00013524,110810.0,110800.0,1.61618715]
[1757154865476,0.16095506,110820.0,110810.0,0.0135]
[1757154865678,0.16095506,110820.0,110810.0,0.32503603]
[1757154866784,0.16195506,110820.0,110810.0,0.32503603]
[1757154867779,0.16195506,110820.0,110810.0,0.40621385]
[1757154869281,0.16195506,110820.0,110810.0,0.32503603]
[1757154870586,0.17177506,110820.0,110810.0,0.32503603]
[1757154870885,0.17177506,110820.0,110810.0,0.03467]
[1757154871184,0.17177506,110820.0,110810.0,0.32503603]
[1757154871381,0.17177506,110820.0,110810.0,0.03467]
[1757154871686,0.17177506,110820.0,110810.0,0.32503603]
[1757154879393,0.17177506,110820.0,110810.0,0.40621385]
[1757154881191,0.17177506,110820.0,110810.0,0.11584782]
[1757154881392,0.17177506,110820.0,110810.0,0.40621385]
[1757154889504,0.17177506,110820.0,110810.0,0.11584782]
[1757154889688,0.17177506,110820.0,110810.0,0.40621385]
[1757154894199,0.17177506,110820.0,110810.0,0.03467]
[1757154894398,0.17177506,110820.0,110810.0,0.32503603]
[1757154895092,0.17177506,110820.0,110810.0,0.40621385]
[1757154903700,0.17177506,110820.0,110810.0,0.32503603]
[1757154905706,0.17177506,110820.0,110810.0,0.03467]
[1757154905906,0.17177506,110820.0,110810.0,0.32503603]
[1757154917403,0.17177506,110820.0,110810.0,0.36134591]
[1757154919616,0.17177506,110820.0,110810.0,0.03467]
[1757154919816,0.17177506,110820.0,110810.0,0.36134591]
[1757154924628,0.17177506,110820.0,110810.0,0.03467]
[1757154924824,0.17177506,110820.0,110810.0,0.36134591]
[1757154927135,0.17177506,110820.0,110810.0,0.03467]
[1757154927432,0.17177506,110820.0,110810.0,0.36134591]
[1757154929037,0.16195506,110820.0,110810.0,0.36134591]
[1757154935940,0.17177506,110820.0,110810.0,0.36134591]
[1757154936642,0.16195506,110820.0,110810.0,0.36134591]
[1757154942244,0.16195506,110820.0,110810.0,0.44260571]
[1757154946248,0.17177506,110820.0,110810.0,0.1159298]
[1757154946546,0.17077506,110820.0,110810.0,0.44360571]
[1757154946741,0.0902383,110820.0,110810.0,0.44460571]
[1757154946946,0.1000583,110820.0,110810.0,0.44460571]
[1757154949350,0.1000583,110820.0,110810.0,0.36334591]
[1757154951348,0.1000583,110820.0,110810.0,0.03667]
[1757154951548,0.1000583,110820.0,110810.0,0.36334591]
[1757154952355,0.1000583,110820.0,110810.0,0.03667]
[1757154952550,0.1000583,110820.0,110810.0,0.36334591]
[1757154958158,1.00341012,110820.0,110810.0,0.03667]
[1757154958352,1.00341012,110820.0,110810.0,0.002]
[1757154960058,1.00341012,110820.0,110810.0,0.001]
[1757154960358,1.00441012,110820.0,110810.0,0.001]
[1757154960959,1.00441012,110820.0,110800.0,0.34077591]
[1757154961256,0.33649591,110810.0,110800.0,0.36241591]
[1757154961452,0.33649591,110810.0,110800.0,0.36231591]
[1757154963859,0.00982,110810.0,110800.0,0.36231591]
[1757154973163,0.00982,110810.0,110800.0,0.03564]
[1757154973363,0.00982,110810.0,110800.0,0.36231591]
[1757154979471,0.00982,110810.0,110800.0,0.32607828]
[1757154979671,0.00982,110810.0,110800.0,0.03564]
[1757154979969,0.00982,110810.0,110800.0,0.32607828]
[1757154980161,0.00982,110810.0,110800.0,0.03564]
[1757154980360,0.00982,110810.0,110800.0,0.32607828]
[1757154990481,0.0902383,110820.0,110810.0,0.0138]
[1757154990781,0.1000583,110820.0,110810.0,0.32550828]
[1757154994291,0.1010583,110820.0,110810.0,0.32550828]
[1757155010505,0.1010583,110820.0,110810.0,0.03507]
[1757155010704,0.1010583,110820.0,110810.0,0.32550828]
[1757155021714,0.1010583,110820.0,110810.0,0.03507]
[1757155038822,0.1010583,110820.0,110810.0,0.32550828]
[1757155039425,0.1010583,110820.0,110810.0,0.36176708]
[1757155040730,0.1010583,110820.0,110810.0,0.03507]
[1757155040930,0.1010583,110820.0,110810.0,0.36176708]
[1757155042429,0.0912383,110820.0,110810.0,0.36176708]
[1757155047530,0.0912383,110820.0,110810.0,0.44301889]
[1757155061952,0.0912383,110820.0,110810.0,0.85995387]
[1757155062346,0.0912383,110820.0,110810.0,0.53325679]
[1757155064151,0.0912383,110820.0,110810.0,0.20655971]
[1757155064453,0.0912383,110820.0,110810.0,0.45200498]
[1757155064643,0.0902383,110820.0,110810.0,0.45300498]
[1757155064847,0.0902383,110820.0,110810.0,0.45400498]
[1757155065151,0.0902383,110820.0,110810.0,0.5351556]
[1757155065951,0.0902383,110820.0,110810.0,0.54433932]
[1757155067641,0.0902383,110820.0,110810.0,0.8710364]
[1757155070053,0.0902383,110820.0,110810.0,0.78988578]
[1757155071355,0.0902383,110820.0,110810.0,0.69046416]
[1757155071656,0.0902383,110820.0,110810.0,1.50682416]
[1757155072051,0.0902383,110820.0,110810.0,1.2612941]
[1757155072954,0.0902383,110820.0,110810.0,1.18012708]
[1757155075258,0.0902383,110820.0,110810.0,1.26130836]
[1757155077058,0.0902383,110820.0,110810.0,1.58800544]
[1757155082766,0.0902383,110820.0,110810.0,1.50682416]
[1757155085263,0.0902383,110820.0,110810.0,1.58801975]
[1757155085462,0.0902383,110820.0,110810.0,1.50682416]
[1757155089869,0.0902383,110820.0,110810.0,0.69046416]
[1757155090076,0.0902383,110820.0,110810.0,1.50674416]
[1757155090575,0.0902383,110820.0,110810.0,1.58796214]
[1757155097975,0.0902383,110820.0,110810.0,1.62038313]
[1757155101577,0.0902383,110820.0,110810.0,1.25732013]
[1757155105682,0.0902383,110820.0,110810.0,1.14368116]
[1757155106580,0.0902383,110820.0,110810.0,1.23391926]
[1757155112488,0.0762383,110820.0,110810.0,1.23391926]
[1757155112787,0.0692383,110820.0,110810.0,1.23391926]
[1757155113687,0.0692383,110820.0,110810.0,1.34755823]
[1757155115182,0.0692383,110820.0,110810.0,1.42875622]
[1757155115384,0.0692383,110820.0,110810.0,1.31511725]
[1757155125394,0.0692383,110820.0,110810.0,1.34755823]
[1757155130300,0.0001,110830.0,110820.0,0.03567]
[1757155130499,0.0001,110830.0,110820.0,0.32600116]
[1757155131396,0.0001,110830.0,110820.0,0.03567]
[1757155131697,0.0001,110830.0,110820.0,0.32600116]
[1757155134506,0.0001,110830.0,110820.0,0.40720072]
[1757155145417,0.0001,110830.0,110820.0,0.32600116]
[1757155148016,0.0001,110830.0,110820.0,0.40720072]
[1757155148518,0.0001,110830.0,110820.0,1.22328072]
[1757155149120,0.0001,110830.0,110820.0,0.40720072]
[1757155149418,0.02116,110830.0,110820.0,1.22328072]
[1757155150619,0.0001,110830.0,110820.0,1.22328072]
[1757155161522,0.0001,110830.0,110820.0,1.58611956]
[1757155165638,0.0001,110830.0,110820.0,1.50492]
[1757155165841,0.0001,110830.0,110820.0,1.50592]
[1757155168337,0.0001,110830.0,110820.0,1.50692]
[1757155172052,0.0001,110830.0,110820.0,0.85375]
[1757155172249,0.0001,110830.0,110820.0,1.50692]
[1757155175548,0.0001,110830.0,110820.0,1.58811956]
[1757155178457,0.0001,110830.0,110820.0,1.50692]
[1757155184464,0.0001,110830.0,110820.0,1.58811956]
[1757155187763,0.0001,110830.0,110820.0,1.50692]
[1757155189664,0.0001,110830.0,110820.0,1.58811956]
[1757155193672,0.0001,110830.0,110820.0,1.50692]
[1757155194469,0.0001,110830.0,110820.0,1.50664]
[1757155197768,0.0001,110830.0,110820.0,1.58783956]
[1757155201472,0.0001,110830.0,110820.0,0.93466956]
[1757155201666,0.0001,110830.0,110820.0,1.58783956]
[1757155203568,0.0001,110830.0,110820.0,1.50664]
[1757155205072,0.0001,110830.0,110820.0,1.58783695]
[1757155205572,0.0001,110830.0,110820.0,1.50664]
[1757155214973,0.0001,110830.0,110820.0,1.58783695]
[1757155217873,0.0001,110830.0,110820.0,0.93466695]
[1757155218079,0.0001,110830.0,110820.0,1.58783695]
[1757155218379,0.0001,110830.0,110820.0,0.77203695]
[1757155218579,0.0001,110830.0,110820.0,1.58771695]
[1757155218983,0.0001,110830.0,110820.0,0.77203695]
[1757155219183,0.0001,110830.0,110820.0,1.58771695]
[1757155221485,0.0001,110830.0,110820.0,0.40916601]
[1757155221688,0.0001,110830.0,110820.0,1.22484601]
[1757155226888,0.0001,110830.0,110820.0,0.11886695]
[1757155227088,0.02231,110830.0,110820.0,1.22480601]
[1757155229787,0.02231,110830.0,110820.0,1.33844498]
[1757155229990,0.02231,110830.0,110820.0,1.25724803]
[1757155233486,0.27231,110830.0,110820.0,0.15130897]
[1757155233691,0.27231,110830.0,110820.0,0.44160803]
[1757155233887,0.27231,110830.0,110820.0,0.52280768]
[1757155234191,0.27231,110830.0,110820.0,0.32796906]
[1757155236098,0.27231,110830.0,110820.0,0.40916871]
[1757155238194,0.27231,110830.0,110820.0,0.11886965]
[1757155238396,0.27231,110830.0,110820.0,0.40916871]
[1757155239299,0.02231,110830.0,110820.0,0.40916871]
[1757155240100,0.02231,110830.0,110820.0,0.11886965]
[1757155240296,0.02231,110830.0,110820.0,0.40916871]
[1757155246900,0.02231,110830.0,110820.0,0.32796906]
[1757155248503,0.02231,110830.0,110820.0,0.03767]
[1757155248701,0.02231,110830.0,110820.0,0.32796906]
[1757155252205,0.02231,110830.0,110820.0,0.03767]
[1757155252409,0.02231,110830.0,110820.0,0.32796906]
[1757155265316,0.02231,110830.0,110820.0,0.40916871]
[1757155269620,0.02231,110830.0,110820.0,0.11886965]
[1757155269819,0.02231,110830.0,110820.0,0.40916871]
[1757155283532,0.34895665,110830.0,110820.0,0.4455163]
[1757155285134,0.02231,110830.0,110820.0,0.4455163]
[1757155288036,0.02231,110830.0,110820.0,0.11886965]
[1757155288339,0.02231,110830.0,110820.0,0.4455163]
[1757155292735,0.02231,110830.0,110820.0,0.36431665]
[1757155305553,0.02231,110830.0,110820.0,0.4455163]
[1757155307859,0.0001,110830.0,110820.0,0.77216295]
[1757155308962,0.0001,110830.0,110820.0,0.11886965]
[1757155309162,0.0001,110830.0,110820.0,0.77216295]
[1757155313171,0.02269,110830.0,110820.0,0.77216295]
[1757155313366,0.0001,110830.0,110820.0,0.11886965]
[1757155313668,0.0001,110830.0,110820.0,0.77216295]
[1757155319366,0.0001,110830.0,110820.0,0.28767]
[1757155319568,0.0001,110830.0,110820.0,0.9409633]
[1757155321970,0.0001,110830.0,110820.0,0.28767]
[1757155322168,0.0001,110830.0,110820.0,0.9409633]
[1757155323766,0.02269,110830.0,110820.0,0.9409633]
[1757155324871,0.02269,110830.0,110820.0,0.28767]
[1757155325066,0.02269,110830.0,110820.0,0.9409633]
[1757155326672,0.0001,110830.0,110820.0,0.9409633]
[1757155329266,0.0001,110830.0,110820.0,1.02216295]
[1757155329267,0.02269,110830.0,110820.0,1.02216295]
[1757155331274,0.02269,110830.0,110820.0,0.36886965]
[1757155331463,0.34933665,110830.0,110820.0,0.4455163]
[1757155332272,0.02269,110830.0,110820.0,0.4455163]
[1757155340281,0.02269,110830.0,110820.0,0.36431665]
[1757155342874,0.02269,110830.0,110820.0,0.03767]
[1757155343080,0.02269,110830.0,110820.0,0.36431665]
[1757155343482,0.02269,110830.0,110820.0,0.32800204]
[1757155344381,0.02269,110830.0,110820.0,0.40920166]
[1757155350988,0.02269,110830.0,110820.0,0.32800204]
[1757155355390,0.02269,110830.0,110820.0,0.40920166]
[1757155358788,0.02269,110830.0,110820.0,0.11886962]
[1757155359093,0.02269,110830.0,110820.0,0.40920166]
[1757155359591,0.02269,110830.0,110820.0,0.32800204]
[1757155363089,0.02269,110830.0,110820.0,0.03767]
[1757155363393,0.02269,110830.0,110820.0,0.32800204]
[1757155365894,0.02269,110830.0,110820.0,0.03767]
[1757155366195,0.02269,110830.0,110820.0,0.32800204]
[1757155366395,0.02269,110830.0,110820.0,0.03767]
[1757155366594,0.02269,110830.0,110820.0,0.32800204]
[1757155369396,0.02269,110830.0,110820.0,0.40920166]
[1757155378305,0.02269,110830.0,110820.0,0.11886962]
[1757155378501,0.02269,110830.0,110820.0,0.40920166]
[1757155379102,0.02269,110830.0,110820.0,0.11886962]
[1757155379504,0.02269,110830.0,110820.0,0.40920166]
[1757155382712,0.02269,110830.0,110820.0,0.11886962]
[1757155382912,0.02269,110830.0,110820.0,0.40920166]
[1757155384112,0.02269,110830.0,110820.0,0.41020166]
[1757155385617,0.02269,110830.0,110820.0,0.41120166]
[1757155396720,0.0001,110830.0,110820.0,0.41120166]
[1757155405429,0.0001,110830.0,110820.0,0.44748936]
[1757155417334,0.0001,110830.0,110820.0,0.12086962]
[1757155417535,0.0001,110830.0,110820.0,0.44748936]
[1757155435451,0.0001,110830.0,110820.0,0.36628974]
[1757155443157,0.0001,110830.0,110820.0,0.44748936]
[1757155463770,0.0001,110830.0,110820.0,0.12086962]
[1757155463973,0.0001,110830.0,110820.0,0.44748936]
[1757155464980,0.0001,110830.0,110820.0,0.36628974]
[1757155467577,0.0001,110830.0,110820.0,0.32999646]
[1757155475389,0.0001,110830.0,110820.0,0.41116531]
[1757155479990,0.0001,110830.0,110820.0,0.47609557]
[1757155480290,0.0001,110830.0,110820.0,0.39492672]
[1757155480692,0.0001,110830.0,110820.0,0.32999646]
[1757155481091,0.0001,110830.0,110820.0,0.05789636]
[1757155481291,0.0001,110830.0,110820.0,0.34822282]
[1757155482192,0.0001,110830.0,110820.0,0.05789636]
[1757155482496,0.0001,110830.0,110820.0,0.34822282]
[1757155485092,0.0001,110830.0,110820.0,0.41315304]
[1757155485294,0.0001,110830.0,110820.0,0.34822282]
[1757155489900,0.0001,110830.0,110820.0,0.42939167]
[1757155497301,0.0001,110830.0,110820.0,0.34822282]
[1757155503920,0.0001,110830.0,110820.0,0.05789636]
[1757155504215,0.0001,110830.0,110820.0,0.34822282]
[1757155507610,0.0001,110830.0,110820.0,0.42938423]
[1757155511112,0.0001,110830.0,110820.0,0.13905777]
[1757155511317,0.0001,110830.0,110820.0,0.42938423]
[1757155512807,0.0001,110830.0,110820.0,0.34822282]
[1757155513514,0.0001,110830.0,110820.0,0.42938274]
[1757155520313,0.0001,110830.0,110820.0,0.13905628]
[1757155520518,0.0001,110830.0,110820.0,0.42938274]
[1757155523318,0.0001,110830.0,110820.0,0.34822282]
[1757155524023,0.0001,110830.0,110820.0,0.05789636]
[1757155524319,0.0001,110830.0,110820.0,0.34822282]
[1757155525520,0.0001,110830.0,110820.0,0.42938268]
[1757155527523,0.0001,110830.0,110820.0,0.79228844]
[1757155531927,0.0001,110830.0,110820.0,0.13905622]
[1757155532128,0.0001,110830.0,110820.0,0.46567233]
[1757155533926,0.0001,110830.0,110820.0,0.13905622]
[1757155534122,0.34982611,110830.0,110820.0,0.12082986]
[1757155534424,0.34982611,110830.0,110820.0,0.44744597]
[1757155535334,0.34982611,110830.0,110820.0,0.36528611]
[1757155535733,0.02321,110830.0,110820.0,0.44644597]
[1757155535934,0.34982611,110830.0,110820.0,0.44644597]